bitfinex/quotes_BTCUSD_20250303
["timestamp","ask_amount","ask_price","bid_price","bid_amount"]
[1741024703201,0.00073568,90382.0,90381.0,0.224285]
[1741024703771,0.00073568,90382.0,90381.0,0.221285]
[1741024704005,0.00073568,90382.0,90381.0,0.224285]
[1741024705386,6.8e-07,90382.0,90381.0,0.224285]
[1741024705591,6.8e-07,90384.0,90383.0,0.22128]
[1741024705779,0.37393744,90400.0,90381.0,0.003]
[1741024705946,0.59517644,90400.0,90382.0,0.221282]
[1741024706147,0.221244,90398.0,90385.0,0.221273]
[1741024706407,0.221244,90398.0,90390.0,0.221263]
[1741024706583,0.59517644,90400.0,90390.0,0.221263]
[1741024706764,0.37393744,90400.0,90394.0,0.221252]
[1741024706982,0.59517744,90400.0,90393.0,0.221255]
[1741024707183,0.59517744,90400.0,90377.0,0.0842]
[1741024707385,0.37393744,90400.0,90377.0,0.0842]
[1741024707690,0.00212821,90401.0,90377.0,0.0842]
[1741024707691,0.00212821,90401.0,90400.0,0.221238]
[1741024708048,2.1e-07,90401.0,90400.0,0.221238]
[1741024708796,2.1e-07,90401.0,90400.0,0.305398]
[1741024709031,2.1e-07,90401.0,90400.0,0.31735722]
[1741024709772,2.1e-07,90401.0,90400.0,0.221238]
[1741024710177,2.1e-07,90401.0,90400.0,0.225238]
[1741024710385,2.1e-07,90401.0,90400.0,0.274638]
[1741024710733,2.1e-07,90401.0,90400.0,0.270638]
[1741024710940,2.1e-07,90401.0,90400.0,0.2376899]
[1741024712143,2.1e-07,90401.0,90400.0,0.5376899]
[1741024712345,2.1e-07,90401.0,90400.0,0.6376899]
[1741024712549,2.1e-07,90401.0,90400.0,0.8145899]
[1741024713037,2.1e-07,90401.0,90400.0,0.8095899]
[1741024713233,2.1e-07,90401.0,90400.0,0.8645899]
[1741024713774,2.1e-07,90401.0,90400.0,0.8585899]
[1741024714128,0.0173373,90440.0,90422.0,0.221185]
[1741024714129,1e-06,90423.0,90422.0,0.221185]
[1741024714351,1e-06,90423.0,90422.0,0.305345]
[1741024714790,0.10059755,90445.0,90432.0,0.22116]
[1741024714791,1e-06,90433.0,90432.0,0.22116]
[1741024715101,5.5e-07,90445.0,90444.0,0.221131]
[1741024715370,0.00011935,90445.0,90444.0,0.23309022]
[1741024715714,0.0001188,90445.0,90444.0,0.23309022]
[1741024717696,0.0001188,90445.0,90444.0,0.221131]
[1741024718574,8e-07,90445.0,90444.0,0.221131]
[1741024720137,8e-07,90445.0,90444.0,0.226131]
[1741024720577,2e-07,90451.0,90450.0,0.221116]
[1741024722173,2e-07,90451.0,90450.0,0.225116]
[1741024724582,0.0003808,90480.0,90478.0,0.221048]
[1741024724583,2.2e-07,90479.0,90478.0,0.221048]
[1741024724735,2e-08,90480.0,90479.0,0.221045]
[1741024725158,0.00039586,90480.0,90479.0,0.221045]
[1741024725512,8.6e-07,90480.0,90479.0,0.221045]
[1741024726009,8.6e-07,90480.0,90479.0,0.23261902]
[1741024727194,8.6e-07,90480.0,90479.0,0.23661902]
[1741024729241,8.6e-07,90480.0,90479.0,0.23261902]
[1741024729661,8.6e-07,90480.0,90479.0,0.23661902]
[1741024730051,8.6e-07,90480.0,90479.0,0.23261902]
[1741024730569,8.6e-07,90480.0,90479.0,0.221045]
[1741024730914,8.6e-07,90480.0,90479.0,0.225045]
[1741024731133,8.6e-07,90480.0,90479.0,0.23682691]
[1741024731464,8.6e-07,90480.0,90479.0,0.225045]
[1741024732336,8.6e-07,90480.0,90479.0,0.221045]
[1741024732541,8.6e-07,90480.0,90465.0,0.08404]
[1741024732813,8.6e-07,90480.0,90479.0,0.225045]
[1741024733020,8.6e-07,90480.0,90479.0,0.221045]
[1741024733391,8.6e-07,90480.0,90479.0,0.224045]
[1741024733858,8.6e-07,90480.0,90479.0,0.221045]
[1741024734435,8.6e-07,90488.0,90487.0,0.221026]
[1741024734633,0.00011956,90488.0,90487.0,0.221026]
[1741024735500,5.6e-07,90488.0,90487.0,0.221026]
[1741024735910,7.6e-07,90492.0,90491.0,0.221016]
[1741024737067,7.6e-07,90492.0,90491.0,0.223016]
[1741024739311,7.6e-07,90492.0,90491.0,0.23473325]
[1741024740302,7.6e-07,90501.0,90500.0,0.220994]
[1741024740501,0.07741,90539.0,90535.0,0.220909]
[1741024740695,0.01732302,90537.0,90535.0,0.220909]
[1741024740874,0.0004589,90536.0,90535.0,0.220909]
[1741024741257,0.0004589,90536.0,90534.0,0.220909]
[1741024741459,0.0004589,90536.0,90524.0,0.220933]
[1741024741669,0.0004589,90536.0,90500.0,0.4215]
[1741024741670,0.0004589,90536.0,90510.0,0.331453]
[1741024741876,0.220916,90532.0,90525.0,0.220932]
[1741024742119,0.220917,90532.0,90525.0,0.220931]
[1741024742326,0.220917,90532.0,90520.0,0.220943]
[1741024742501,0.28247881,90530.0,90523.0,0.220938]
[1741024742702,0.28247881,90530.0,90527.0,0.220928]
[1741024742913,0.0004589,90536.0,90521.0,0.220941]
[1741024743280,0.0004589,90536.0,90506.0,0.3]
[1741024743484,0.0004589,90536.0,90535.0,0.220909]
[1741024744010,0.01777877,90536.0,90535.0,0.220909]
[1741024744453,0.01777877,90536.0,90531.0,0.220916]
[1741024744652,0.01777877,90536.0,90535.0,0.220909]
[1741024744829,0.01777877,90536.0,90533.0,0.441823]
[1741024745007,0.01777877,90536.0,90535.0,0.220909]
[1741024746210,0.0004589,90536.0,90535.0,0.220909]
[1741024746524,1e-07,90542.0,90541.0,0.220894]
[1741024749105,1e-07,90542.0,90541.0,0.224894]
[1741024749487,1e-07,90542.0,90521.0,0.084]
[1741024749732,1e-07,90542.0,90541.0,0.220894]
[1741024749991,1e-07,90542.0,90541.0,0.223894]
[1741024750387,1e-07,90542.0,90538.0,0.2209]
[1741024750649,1e-07,90542.0,90541.0,0.220894]
[1741024751099,1e-07,90542.0,90523.0,0.01406003]
[1741024751293,1e-07,90542.0,90541.0,0.220894]
[1741024751711,0.2208921,90542.0,90523.0,0.01406003]
[1741024751918,0.220905,90537.0,90529.0,0.220922]
[1741024752120,0.28247881,90540.0,90523.0,0.0001187]
[1741024752354,0.0815,90541.0,90540.0,0.220896]
[1741024752550,1e-07,90542.0,90541.0,0.220894]
[1741024752944,0.220894,90541.0,90507.0,0.741951]
[1741024753143,0.28247881,90540.0,90531.0,0.220916]
[1741024753344,0.220899,90539.0,90532.0,0.220915]
[1741024753545,0.28247881,90540.0,90513.0,0.3]
[1741024753848,0.28247881,90540.0,90533.0,0.220912]
[1741024754148,0.01731885,90542.0,90531.0,0.220918]
[1741024754305,0.23821085,90542.0,90523.0,0.0001187]
[1741024754726,0.01731885,90542.0,90541.0,0.220894]
[1741024755723,1e-07,90542.0,90541.0,0.220894]
[1741024756621,1e-07,90542.0,90541.0,0.222894]
[1741024757255,0.2208911,90542.0,90541.0,0.002]
[1741024757464,1e-07,90542.0,90541.0,0.002]
[1741024757708,1e-07,90542.0,90532.0,0.220915]
[1741024757910,0.220915,90533.0,90527.0,0.220926]
[1741024758112,0.28247891,90542.0,90527.0,0.220926]
[1741024758113,0.220907,90536.0,90527.0,0.220926]
[1741024758275,0.1247,90541.0,90523.0,0.0001187]
[1741024758510,0.28247881,90533.0,90523.0,0.0001187]
[1741024758724,0.28247881,90540.0,90538.0,0.220901]
[1741024758925,0.1247,90541.0,90540.0,0.220896]
[1741024759189,0.0771,90541.0,90540.0,0.220896]
[1741024759359,0.28247881,90548.0,90541.0,0.220894]
[1741024760694,0.28247881,90548.0,90541.0,0.222894]
[1741024760929,0.220885,90545.0,90541.0,0.002]
[1741024761100,0.28247881,90548.0,90541.0,0.222894]
[1741024761877,0.28247881,90548.0,90541.0,0.002]
[1741024762109,0.28247881,90548.0,90541.0,0.220894]
[1741024763347,0.01731733,90545.0,90541.0,0.220894]
[1741024767355,0.28247881,90551.0,90541.0,0.220894]
[1741024768543,0.3234,90555.0,90541.0,0.220894]
[1741024769047,4e-05,90557.0,90541.0,0.220894]
[1741024769251,4e-05,90557.0,90541.0,0.221894]
[1741024769655,4e-05,90557.0,90541.0,0.220894]
[1741024769896,4e-05,90557.0,90541.0,0.222894]
[1741024771011,8.9e-07,90546.0,90545.0,0.220884]
[1741024772093,8.9e-07,90546.0,90545.0,0.221884]
[1741024772840,8.9e-07,90546.0,90545.0,0.220884]
[1741024773842,8.9e-07,90546.0,90531.0,0.331378]
[1741024773843,8.9e-07,90546.0,90515.0,0.1]
[1741024774041,0.28247881,90540.0,90539.0,0.220899]
[1741024774241,8.9e-07,90546.0,90545.0,0.220884]
[1741024776126,8.9e-07,90546.0,90545.0,0.221884]
[1741024778017,1.9e-07,90563.0,90562.0,0.220843]
[1741024779815,1.9e-07,90563.0,90559.0,0.220849]
[1741024780014,1.9e-07,90563.0,90562.0,0.221843]
[1741024780447,1.9e-07,90563.0,90562.0,0.001]
[1741024780665,1.9e-07,90563.0,90562.0,0.221843]
[1741024781332,1.9e-07,90563.0,90562.0,0.220843]
[1741024786091,0.00017049,90563.0,90562.0,0.222843]
[1741024786513,0.00017049,90563.0,90562.0,0.220843]
[1741024788980,0.02086939,90563.0,90562.0,0.220843]
[1741024790329,0.00017049,90563.0,90562.0,0.220843]
[1741024791753,0.00017049,90563.0,90560.0,0.220845]
[1741024791754,0.0797,90562.0,90534.0,0.0476]
[1741024791980,0.0797,90562.0,90558.0,0.220852]
[1741024792196,0.02069754,90561.0,90541.0,0.0003406]
[1741024792411,0.02069754,90561.0,90542.0,0.220891]
[1741024792663,0.02069754,90561.0,90551.0,0.220867]
[1741024792664,0.28198552,90552.0,90551.0,0.220867]
[1741024792874,0.220861,90555.0,90549.0,0.220874]
[1741024793078,0.52353006,90561.0,90556.0,0.220855]
[1741024793286,0.52353006,90561.0,90554.0,0.220862]
[1741024793287,0.220862,90554.0,90548.0,0.220875]
[1741024793489,0.220865,90553.0,90548.0,0.220875]
[1741024793693,0.02069754,90554.0,90553.0,0.220865]
[1741024794098,0.02069754,90554.0,90548.0,0.220875]
[1741024794303,0.02069754,90554.0,90541.0,0.0003406]
[1741024794545,0.02069754,90554.0,90551.0,0.220868]
[1741024794745,0.02069754,90554.0,90553.0,0.220865]
[1741024794925,0.0173154,90560.0,90541.0,0.0003406]
[1741024795126,0.28198552,90551.0,90550.0,0.220872]
[1741024795321,0.220854,90558.0,90552.0,0.220865]
[1741024795719,0.22085,90559.0,90554.0,0.220862]
[1741024795905,0.03261684,90558.0,90554.0,0.220862]
[1741024796306,0.02071183,90557.0,90554.0,0.220861]
[1741024796533,0.02071183,90557.0,90556.0,0.220857]
[1741024798222,0.02071183,90557.0,90554.0,0.001]
[1741024798423,0.22086,90555.0,90554.0,0.001]
[1741024798577,0.22086,90555.0,90549.0,0.220874]
[1741024798776,0.220866,90553.0,90521.0,0.441884]
[1741024798998,0.220866,90553.0,90515.0,0.1]
[1741024798999,0.28198552,90551.0,90519.0,0.3215]
[1741024799199,0.28198552,90551.0,90544.0,0.220885]
[1741024799364,0.28198552,90551.0,90549.0,0.220873]
[1741024799566,0.28198552,90551.0,90550.0,0.220872]
[1741024800261,0.3,90559.0,90548.0,0.220876]
[1741024800481,0.60538552,90560.0,90559.0,0.22085]
[1741024800650,0.3,90559.0,90549.0,0.003]
[1741024800875,0.61591285,90550.0,90549.0,0.003]
[1741024801027,0.69593696,90550.0,90549.0,0.003]
[1741024801246,0.16052411,90550.0,90549.0,0.223874]
[1741024801453,0.03262411,90550.0,90549.0,0.223874]
[1741024801650,0.09821181,90558.0,90549.0,0.003]
[1741024801951,0.22089,90543.0,90523.0,0.0001703]
[1741024802127,0.28198552,90551.0,90523.0,0.3315753]
[1741024802330,0.220891,90542.0,90523.0,0.0001703]
[1741024802565,0.69895504,90542.0,90523.0,0.0001703]
[1741024802981,0.69895504,90542.0,90533.0,0.220911]
[1741024803124,0.69895504,90542.0,90523.0,0.0001703]
[1741024803125,0.47806404,90542.0,90523.0,0.0001703]
[1741024803326,0.47806404,90542.0,90539.0,0.2212386]
[1741024803668,0.66633185,90542.0,90539.0,0.0003406]
[1741024803867,0.66633185,90542.0,90541.0,0.0013406]
[1741024803868,0.69894003,90542.0,90541.0,0.0013406]
[1741024804507,0.69894003,90542.0,90541.0,6e-07]
[1741024804708,0.09584085,90534.0,90523.0,0.0001703]
[1741024804908,0.66287585,90524.0,90523.0,0.000289]
[1741024805108,0.69548403,90524.0,90523.0,0.000289]
[1741024807223,0.3,90505.0,90499.0,0.220995]
[1741024807451,0.58198552,90505.0,90495.0,0.20429399]
[1741024807704,0.221014,90492.0,90491.0,0.0001703]
[1741024808327,0.23555485,90492.0,90491.0,0.0001703]
[1741024808617,0.01454085,90492.0,90491.0,0.0001703]
[1741024808755,0.0463,90498.0,90491.0,0.2211863]
[1741024808966,0.0463,90498.0,90497.0,0.221001]
[1741024809194,0.0463,90498.0,90497.0,0.220001]
[1741024809619,0.0463,90498.0,90494.0,0.221008]
[1741024809820,0.01454085,90503.0,90502.0,0.220989]
[1741024810046,0.002,90498.0,90497.0,0.221001]
[1741024810989,5.2e-07,90505.0,90504.0,0.220984]
[1741024811199,0.28198552,90520.0,90519.0,0.220948]
[1741024811410,0.0781,90538.0,90537.0,0.220904]
[1741024811613,0.0809,90546.0,90539.0,0.220899]
[1741024811821,0.0454,90558.0,90527.0,0.08384]
[1741024811822,0.0809,90556.0,90527.0,0.08384]
[1741024811961,0.00034,90570.0,90541.0,0.220894]
[1741024811962,0.00011861,90542.0,90541.0,0.220894]
[1741024812148,0.00011861,90542.0,90527.0,0.08384]
[1741024812149,0.00011861,90542.0,90534.0,0.220909]
[1741024812347,0.00011861,90542.0,90541.0,0.220894]
[1741024812779,6.1e-07,90542.0,90541.0,0.220894]
[1741024812977,6.1e-07,90542.0,90541.0,0.520894]
[1741024814789,0.220835,90566.0,90555.0,0.220858]
[1741024814970,0.220828,90568.0,90561.0,0.219843]
[1741024815229,0.50314952,90570.0,90562.0,0.220843]
[1741024815453,0.28232552,90570.0,90549.0,0.220873]
[1741024815666,0.28232552,90570.0,90560.0,0.220846]
[1741024815866,0.00034,90570.0,90562.0,0.219843]
[1741024816274,0.00034,90570.0,90562.0,0.23135551]
[1741024816486,0.28198552,90600.0,90599.0,0.220752]
[1741024816701,0.28198552,90609.0,90600.0,0.1]
[1741024816906,0.28198552,90610.0,90609.0,0.220728]
[1741024817103,0.28198552,90610.0,90607.0,0.1]
[1741024817104,0.28198552,90619.0,90616.0,0.1]
[1741024817333,0.28198552,90626.0,90615.0,0.1]
[1741024817562,0.45323997,90640.0,90578.0,0.0783]
[1741024817563,0.01177445,90640.0,90621.0,0.1]
[1741024817821,0.28198552,90631.0,90621.0,0.1]
[1741024818008,0.3,90630.0,90629.0,0.099]
[1741024818221,0.3,90630.0,90620.0,0.1]
[1741024818388,0.22261206,90629.0,90622.0,0.099]
[1741024818608,0.220681,90629.0,90622.0,0.099]
[1741024818788,0.220681,90629.0,90620.0,0.1]
[1741024818789,0.28198552,90630.0,90629.0,0.099]
[1741024818989,0.220694,90623.0,90622.0,0.099]
[1741024819399,0.22068,90629.0,90622.0,0.099]
[1741024819704,0.220694,90624.0,90622.0,0.099]
[1741024819903,0.302,90629.0,90622.0,0.099]
[1741024820543,0.302,90629.0,90628.0,0.099]
[1741024820742,0.3,90629.0,90628.0,0.099]
[1741024820950,0.3,90631.0,90628.0,0.099]
[1741024821153,0.3,90631.0,90621.0,0.099]
[1741024821321,0.3,90631.0,90620.0,0.1]
[1741024821322,0.220694,90623.0,90622.0,0.099]
[1741024821546,0.01454085,90630.0,90616.0,0.1]
[1741024821727,0.01647209,90630.0,90612.0,0.099]
[1741024821926,0.220735,90606.0,90605.0,0.1]
[1741024822125,0.01454085,90609.0,90599.0,0.099]
[1741024822328,0.01454085,90609.0,90575.0,0.22081]
[1741024822329,0.01454085,90607.0,90590.0,0.1]
[1741024822532,0.28198552,90600.0,90590.0,0.1]
[1741024822732,0.01164878,90606.0,90599.0,0.220752]
[1741024822982,0.01454085,90602.0,90591.0,0.1]
[1741024823172,0.01454085,90600.0,90591.0,0.1]
[1741024823371,0.00039569,90606.0,90597.0,0.099]
[1741024823730,0.00039569,90606.0,90605.0,0.220738]
[1741024823873,0.00039569,90606.0,90605.0,0.319738]
[1741024824488,0.00039569,90606.0,90605.0,0.419738]
[1741024825058,0.00039569,90606.0,90605.0,0.421738]
[1741024825230,0.00043569,90606.0,90605.0,0.421738]
[1741024825593,0.00043569,90606.0,90605.0,0.419738]
[1741024825793,0.00143569,90606.0,90605.0,0.43740756]
[1741024827009,0.00143569,90606.0,90605.0,0.425738]
[1741024827191,0.00043569,90606.0,90605.0,0.419738]
[1741024827395,0.00143569,90606.0,90605.0,0.426738]
[1741024827824,0.00043569,90606.0,90605.0,0.419738]
[1741024828031,0.0001701,90635.0,90634.0,0.419667]
[1741024828237,0.0002888,90635.0,90634.0,0.418667]
[1741024829074,0.0002888,90635.0,90634.0,0.417667]
[1741024829300,2e-07,90646.0,90645.0,0.41964]
[1741024831314,2e-07,90646.0,90645.0,0.199]
[1741024831538,2e-07,90646.0,90645.0,0.107]
[1741024831735,2e-07,90646.0,90645.0,0.007]
[1741024831890,2e-07,90646.0,90645.0,0.41964]
[1741024832094,2e-07,90646.0,90645.0,0.42664]
[1741024833428,2e-07,90646.0,90645.0,0.41964]
[1741024833627,2e-07,90646.0,90645.0,0.42264]
[1741024833787,2e-07,90646.0,90645.0,0.32264]
[1741024834196,2e-07,90646.0,90645.0,0.41964]
[1741024834406,0.0010002,90646.0,90645.0,0.42664]
[1741024834963,0.0010002,90646.0,90642.0,0.099]
[1741024834964,2e-07,90646.0,90642.0,0.099]
[1741024835138,2e-07,90646.0,90645.0,0.32264]
[1741024835660,2e-07,90646.0,90645.0,0.42164]
[1741024835823,2e-07,90646.0,90645.0,0.32264]
[1741024836023,2e-07,90646.0,90645.0,0.42164]
[1741024836274,0.0172984,90646.0,90645.0,0.42164]
[1741024836445,2e-07,90646.0,90645.0,0.41964]
[1741024836646,0.0010002,90646.0,90645.0,0.106]
[1741024836867,0.0010002,90646.0,90645.0,0.42664]
[1741024837069,0.0010002,90646.0,90645.0,0.32664]
[1741024837274,2e-07,90646.0,90645.0,0.199]
[1741024837474,2e-07,90646.0,90645.0,0.41964]
[1741024837674,0.0010002,90646.0,90645.0,0.42664]
[1741024838112,2e-07,90646.0,90645.0,0.41964]
[1741024838509,2e-07,90646.0,90645.0,0.42364]
[1741024839041,6e-07,90654.0,90653.0,0.419621]
[1741024840038,6e-07,90654.0,90653.0,0.43008076]
[1741024840236,6e-07,90658.0,90657.0,0.719611]
[1741024840834,6e-07,90658.0,90657.0,0.718611]
[1741024841240,6e-07,90658.0,90657.0,0.418611]
[1741024841726,0.0010006,90658.0,90657.0,0.425611]
[1741024843462,6e-07,90658.0,90657.0,0.418611]
[1741024843686,6e-07,90658.0,90657.0,0.425611]
[1741024843893,0.0010406,90658.0,90657.0,0.425611]
[1741024844310,4.06e-05,90658.0,90657.0,0.418611]
[1741024844580,0.0010406,90658.0,90657.0,0.325611]
[1741024844780,0.0010406,90658.0,90657.0,0.425611]
[1741024844932,4.06e-05,90658.0,90657.0,0.418611]
[1741024845134,4.06e-05,90658.0,90657.0,0.1]
[1741024845338,0.0010406,90658.0,90657.0,0.205]
[1741024845539,0.2216496,90658.0,90657.0,0.105]
[1741024845748,0.0010406,90658.0,90657.0,0.007]
[1741024845949,0.2216496,90658.0,90657.0,0.007]
[1741024846332,0.0002106,90658.0,90657.0,0.318611]
[1741024847036,0.0012106,90658.0,90657.0,0.324611]
[1741024847353,0.0012106,90658.0,90657.0,0.424611]
[1741024847796,0.0002106,90658.0,90657.0,0.418611]
[1741024848056,0.0002106,90658.0,90657.0,0.421611]
[1741024848415,0.00011545,90658.0,90657.0,0.421611]
[1741024848561,0.00011545,90658.0,90657.0,0.201]
[1741024848912,0.00011545,90658.0,90657.0,0.103]
[1741024849118,0.22072445,90658.0,90657.0,0.003]
[1741024849337,0.00011545,90658.0,90657.0,0.223611]
[1741024849527,0.00011545,90658.0,90657.0,0.321611]
[1741024849726,0.00011545,90658.0,90657.0,0.223611]
[1741024849939,0.00011545,90658.0,90657.0,0.101]
[1741024850142,0.00011545,90658.0,90657.0,0.003]
[1741024850462,0.22072445,90658.0,90657.0,0.003]
[1741024850661,0.00011545,90658.0,90657.0,0.003]
[1741024850949,0.22072445,90658.0,90657.0,0.003]
[1741024851132,0.22076445,90658.0,90657.0,0.003]
[1741024851441,0.00015545,90658.0,90657.0,0.003]
[1741024851776,0.00015545,90658.0,90657.0,0.321611]
[1741024852583,0.00015545,90658.0,90657.0,0.101]
[1741024852781,0.22076445,90658.0,90657.0,0.101]
[1741024853031,0.00015545,90658.0,90657.0,0.101]
[1741024853500,0.00015545,90658.0,90657.0,0.321611]
[1741024854098,0.00015545,90658.0,90657.0,0.421611]
[1741024854304,0.01745174,90658.0,90657.0,0.421611]
[1741024854839,0.00015545,90658.0,90657.0,0.421611]
[1741024855466,0.00015545,90658.0,90657.0,0.418611]
[1741024857431,4.5e-07,90658.0,90657.0,0.718611]
[1741024857614,4.5e-07,90658.0,90657.0,0.72679825]
[1741024857816,4.5e-07,90658.0,90657.0,0.72713805]
[1741024858582,4.5e-07,90658.0,90657.0,0.74024346]
[1741024858738,3.5e-07,90658.0,90657.0,0.74024346]
[1741024859184,0.00201,90676.0,90672.0,0.220575]
[1741024859363,0.00045896,90673.0,90672.0,0.318575]
[1741024859763,0.00045896,90673.0,90672.0,0.418575]
[1741024860444,9.6e-07,90679.0,90678.0,0.41856]
[1741024860858,9.6e-07,90679.0,90678.0,0.32056]
[1741024861323,9.6e-07,90679.0,90678.0,0.41856]
[1741024861521,9.6e-07,90679.0,90678.0,0.31856]
[1741024862356,9.6e-07,90679.0,90678.0,0.20618725]
[1741024862679,9.6e-07,90679.0,90678.0,0.42674725]
[1741024863007,0.32340096,90679.0,90678.0,0.00818725]
[1741024863222,0.85849981,90679.0,90678.0,0.00818725]
[1741024863426,0.63794181,90679.0,90658.0,0.098]
[1741024863665,0.28198552,90669.0,90658.0,0.098]
[1741024863850,0.220609,90658.0,90657.0,0.00045836]
[1741024864051,0.596309,90658.0,90657.0,0.00045836]
[1741024864215,0.66034985,90658.0,90657.0,0.00045836]
[1741024867015,0.99212752,90658.0,90657.0,3.6e-07]
[1741024867410,0.99212752,90658.0,90607.0,0.098]
[1741024867411,0.599462,90636.0,90607.0,0.098]
[1741024867616,0.22075,90600.0,90599.0,0.1]
[1741024867821,0.220741,90604.0,90599.0,0.0001187]
[1741024868039,0.220741,90604.0,90603.0,0.1]
[1741024868243,0.220735,90607.0,90603.0,0.1]
[1741024868483,0.22075,90600.0,90599.0,0.0001187]
[1741024868671,0.01454085,90607.0,90599.0,0.0001187]
[1741024868890,0.01454085,90607.0,90603.0,0.220741]
[1741024869207,0.28198552,90609.0,90608.0,0.220731]
[1741024869432,0.3,90612.0,90611.0,0.220723]
[1741024869984,0.220732,90608.0,90602.0,0.1]
[1741024870189,0.220732,90608.0,90597.0,0.220757]
[1741024870190,0.220741,90604.0,90599.0,0.0004585]
[1741024870609,0.28198552,90609.0,90599.0,0.0004585]
[1741024870610,0.220743,90603.0,90599.0,0.0004585]
[1741024870819,0.01454085,90604.0,90599.0,0.0004585]
[1741024871014,0.22075,90600.0,90599.0,0.0004585]
[1741024871363,0.01454085,90600.0,90599.0,0.0004585]
[1741024871726,0.3,90604.0,90603.0,0.220743]
[1741024872772,0.01454085,90607.0,90605.0,0.220738]
[1741024872973,0.01454085,90605.0,90599.0,0.0004585]
[1741024873177,0.01647255,90605.0,90599.0,0.2212105]
[1741024873389,0.3,90607.0,90600.0,0.220748]
[1741024873390,0.01454085,90606.0,90600.0,0.220748]
[1741024873815,0.52075,90600.0,90599.0,0.0004585]
[1741024873950,0.93619085,90600.0,90599.0,0.0004585]
[1741024875639,0.93819085,90600.0,90599.0,5e-07]
[1741024877281,0.01454085,90575.0,90569.0,0.2018235]
[1741024877502,0.01454085,90575.0,90572.0,0.220817]
[1741024877503,0.3,90573.0,90572.0,0.220817]
[1741024877910,0.3234,90574.0,90573.0,0.220816]
[1741024878112,0.3234,90574.0,90573.0,0.418816]
[1741024878550,3e-07,90575.0,90574.0,0.418813]
[1741024879959,0.3234,90611.0,90610.0,0.418726]
[1741024880194,0.3234,90619.0,90611.0,0.220723]
[1741024880430,0.09876381,90612.0,90611.0,0.219723]
[1741024880566,0.09876381,90612.0,90611.0,0.417723]
[1741024881170,0.09876381,90612.0,90611.0,0.416723]
[1741024882038,0.32048481,90612.0,90611.0,0.007]
[1741024882246,0.22183956,90612.0,90611.0,0.007]
[1741024882525,0.30111856,90612.0,90611.0,0.227723]
[1741024882676,0.00111856,90612.0,90611.0,0.227723]
[1741024883121,0.00011856,90612.0,90611.0,0.220723]
[1741024883533,0.00111856,90612.0,90611.0,0.227723]
[1741024883896,0.00011856,90612.0,90609.0,0.098]
[1741024884101,0.00011856,90612.0,90600.0,0.1]
[1741024884302,0.28198552,90610.0,90602.0,0.1]
[1741024884524,0.33794085,90609.0,90602.0,0.1]
[1741024884729,0.33794085,90609.0,90608.0,0.220731]
[1741024885282,0.3234,90609.0,90608.0,0.220731]
[1741024885634,0.3234,90609.0,90608.0,0.318731]
[1741024885970,0.3234,90609.0,90608.0,0.220731]
[1741024886283,0.3234,90609.0,90608.0,0.320731]
[1741024886442,0.3234,90609.0,90608.0,0.423731]
[1741024887628,0.3234,90609.0,90606.0,0.220733]
[1741024887629,0.3234,90609.0,90606.0,0.098]
[1741024887831,0.3244,90609.0,90608.0,0.006]
[1741024888879,0.33894085,90609.0,90608.0,0.006]
[1741024889078,0.85966885,90609.0,90608.0,0.006]
[1741024889957,0.220811,90575.0,90569.0,0.1]
[1741024890141,0.3,90577.0,90569.0,0.198]
[1741024890311,0.33794085,90575.0,90569.0,0.1]
[1741024890652,0.33794085,90575.0,90570.0,0.220822]
[1741024890653,0.3234,90575.0,90570.0,0.220822]
[1741024890802,0.3234,90575.0,90569.0,0.1]
[1741024891005,0.3234,90575.0,90574.0,0.2251528]
[1741024891237,0.3234,90575.0,90574.0,0.00473549]
[1741024891640,0.544211,90575.0,90574.0,0.00473549]
[1741024892060,0.3234,90575.0,90574.0,0.00073549]
[1741024892268,0.3234,90575.0,90574.0,0.09873549]
[1741024892485,0.3234,90575.0,90574.0,0.22154849]
[1741024892656,0.3234,90575.0,90574.0,0.00073549]
[1741024893227,0.844211,90575.0,90574.0,0.00073549]
[1741024893503,0.85875185,90575.0,90574.0,0.00073549]
[1741024893721,0.63794085,90575.0,90574.0,0.00073549]
[1741024894073,0.3234,90575.0,90574.0,0.00073549]
[1741024894302,0.3234,90593.0,90592.0,0.32077]
[1741024894501,0.09864525,90620.0,90619.0,0.320704]
[1741024894658,2.5e-07,90620.0,90619.0,0.418704]
[1741024894877,2.5e-07,90620.0,90619.0,0.320704]
[1741024895099,2.5e-07,90620.0,90619.0,0.418704]
[1741024895545,2.5e-07,90620.0,90619.0,0.1]
[1741024895986,0.220709,90617.0,90608.0,0.220729]
[1741024896311,0.28210433,90620.0,90604.0,0.1]
[1741024896456,0.220736,90606.0,90604.0,0.1]
[1741024896663,0.31454085,90612.0,90597.0,0.1]
[1741024896863,0.31454085,90612.0,90575.0,0.13294]
[1741024896864,0.31454085,90609.0,90598.0,0.1]
[1741024897065,0.3,90611.0,90598.0,0.198]
[1741024897325,0.3,90611.0,90610.0,0.220726]
[1741024897840,0.01454085,90609.0,90598.0,0.1]
[1741024898052,0.3,90604.0,90582.0,0.1]
[1741024898210,0.3,90604.0,90586.0,0.1]
[1741024898211,0.22076,90596.0,90586.0,0.1]
[1741024898385,0.01454085,90594.0,90586.0,0.1]
[1741024898668,0.220772,90591.0,90586.0,0.1]
[1741024898795,0.3,90595.0,90594.0,0.220765]
[1741024899536,0.01454085,90599.0,90591.0,0.220771]
[1741024899699,0.3,90600.0,90599.0,0.220752]
[1741024899898,0.3234,90601.0,90600.0,0.22075]
[1741024900120,0.3234,90601.0,90600.0,0.32075]
[1741024901252,0.220757,90597.0,90596.0,0.1]
[1741024901388,0.3234,90601.0,90583.0,0.098]
[1741024901389,0.37221214,90600.0,90583.0,0.098]
[1741024901593,0.37221214,90600.0,90570.0,0.331234]
[1741024901594,0.220767,90594.0,90592.0,0.1]
[1741024901795,0.220769,90593.0,90592.0,0.1]
[1741024901991,0.441504,90599.0,90586.0,0.1]
[1741024902277,0.220791,90583.0,90582.0,0.1]
[1741024902565,0.220811,90575.0,90574.0,0.0003398]